[Event "Early-Titled-Tuesday-Blitz-May-14-2024"]
[Site "Chess.com"]
[Date "2024.05.14"]
[Round "9"]
[White "PonyQueen07"]
[Black "Carolinamazariegos88"]
[Result "1-0"]
[WhiteElo "2113"]
[BlackElo "1696"]
[TimeControl "180+1"]
[EndTime "9:46:28 PDT"]
[Termination "PonyQueen07 won by resignation"]

1. c4 {[%clk 0:03:00.9]} 1... f5 {[%clk 0:02:58]} 2. Nc3 {[%clk 0:02:58.8]} 2...
Nf6 {[%clk 0:02:58]} 3. g3 {[%clk 0:02:47.7]} 3... g6 {[%clk 0:02:55.8]} 4. Bg2
{[%clk 0:02:47.9]} 4... Bg7 {[%clk 0:02:53.5]} 5. Nf3 {[%clk 0:02:47.6]} 5... d6
{[%clk 0:02:52.5]} 6. O-O {[%clk 0:02:46.9]} 6... O-O {[%clk 0:02:52]} 7. d4
{[%clk 0:02:39.8]} 7... Nc6 {[%clk 0:02:49.7]} 8. Bg5 {[%clk 0:02:17.4]} 8...
Qe8 {[%clk 0:02:47.9]} 9. d5 {[%clk 0:02:10.7]} 9... Ne5 {[%clk 0:02:43.8]} 10.
Nxe5 {[%clk 0:02:07.7]} 10... dxe5 {[%clk 0:02:43.7]} 11. Bxf6 {[%clk
0:02:05.1]} 11... Bxf6 {[%clk 0:02:39.7]} 12. c5 {[%clk 0:01:51.6]} 12... a6
{[%clk 0:02:35.1]} 13. Qb3 {[%clk 0:01:47]} 13... Kh8 {[%clk 0:02:32.8]} 14.
Rfd1 {[%clk 0:01:37.6]} 14... c6 {[%clk 0:02:12]} 15. dxc6 {[%clk 0:01:28.2]}
15... bxc6 {[%clk 0:02:11.6]} 16. Qb6 {[%clk 0:01:27.4]} 16... Bd7 {[%clk
0:02:08.3]} 17. Rxd7 {[%clk 0:01:24.6]} 17... Qxd7 {[%clk 0:02:00.2]} 18. Bxc6
{[%clk 0:01:23.6]} 18... Qd2 {[%clk 0:01:52.8]} 19. Bxa8 {[%clk 0:01:06.7]}
19... Rxa8 {[%clk 0:01:52.5]} 20. c6 {[%clk 0:01:00.4]} 20... e4 {[%clk
0:01:27.8]} 21. Rd1 {[%clk 0:00:50.1]} 21... Qc2 {[%clk 0:01:26.8]} 22. Rd8+
{[%clk 0:00:43.2]} 22... Rxd8 {[%clk 0:01:23]} 23. Qxd8+ {[%clk 0:00:42.3]}
23... Kg7 {[%clk 0:01:23.9]} 24. c7 {[%clk 0:00:39.1]} 24... Bxc3 {[%clk
0:00:58.9]} 25. bxc3 {[%clk 0:00:33.3]} 25... Qxe2 {[%clk 0:00:54.1]} 26. c8=Q
{[%clk 0:00:20.3]} 26... Kh6 {[%clk 0:00:39.9]} 27. Qc5 {[%clk 0:00:10.1]} 27...
Qe1+ {[%clk 0:00:24.4]} 28. Kg2 {[%clk 0:00:09.7]} 28... Qe2 {[%clk 0:00:24.8]}
29. Qe3+ {[%clk 0:00:09.7]} 1-0

[Event "Early-Titled-Tuesday-Blitz-May-14-2024"]
[Site "Chess.com"]
[Date "2024.05.14"]
[Round "9"]
[White "BelyakovBogdan"]
[Black "rollercoaster29"]
[Result "1-0"]
[WhiteElo "2604"]
[BlackElo "2451"]
[TimeControl "180+1"]
[EndTime "9:46:29 PDT"]
[Termination "BelyakovBogdan won by resignation"]

1. e4 {[%clk 0:03:00.9]} 1... e5 {[%clk 0:02:58.9]} 2. Nf3 {[%clk 0:02:50.2]}
2... Nc6 {[%clk 0:02:58.7]} 3. Nc3 {[%clk 0:02:49.4]} 3... Nf6 {[%clk 0:02:58]}
4. Bb5 {[%clk 0:02:47.7]} 4... Bb4 {[%clk 0:02:56.2]} 5. O-O {[%clk 0:02:47.2]}
5... O-O {[%clk 0:02:52.6]} 6. Bxc6 {[%clk 0:02:45.5]} 6... bxc6 {[%clk
0:02:51]} 7. Nxe5 {[%clk 0:02:44.7]} 7... Bxc3 {[%clk 0:02:49.8]} 8. dxc3 {[%clk
0:02:45.1]} 8... Re8 {[%clk 0:02:47.6]} 9. Nd3 {[%clk 0:02:18.1]} 9... Nxe4
{[%clk 0:02:47.1]} 10. Re1 {[%clk 0:02:15.5]} 10... d6 {[%clk 0:02:33.8]} 11. f3
{[%clk 0:02:15.3]} 11... Nf6 {[%clk 0:02:30.9]} 12. Bg5 {[%clk 0:02:14.7]} 12...
Be6 {[%clk 0:02:27.7]} 13. Qd2 {[%clk 0:02:09.8]} 13... c5 {[%clk 0:01:53.9]}
14. b3 {[%clk 0:02:06.3]} 14... h6 {[%clk 0:01:46.5]} 15. Bh4 {[%clk 0:02:05.7]}
15... g5 {[%clk 0:01:46.2]} 16. Bf2 {[%clk 0:01:45.9]} 16... Nd7 {[%clk
0:01:38]} 17. h4 {[%clk 0:01:43.8]} 17... Qf6 {[%clk 0:01:28.2]} 18. hxg5 {[%clk
0:01:43]} 18... hxg5 {[%clk 0:01:28.3]} 19. Be3 {[%clk 0:01:33.7]} 19... g4
{[%clk 0:01:21.3]} 20. fxg4 {[%clk 0:01:33.9]} 20... Bxg4 {[%clk 0:01:19.3]} 21.
Nf4 {[%clk 0:01:27.3]} 21... Ne5 {[%clk 0:01:07.5]} 22. Nd5 {[%clk 0:01:26.2]}
22... Qg6 {[%clk 0:01:01.6]} 23. Bg5 {[%clk 0:01:24.7]} 23... Kf8 {[%clk
0:00:21.9]} 24. Nxc7 {[%clk 0:01:19.4]} 24... Bd7 {[%clk 0:00:11.7]} 25. Nxa8
{[%clk 0:01:15.5]} 25... Rxa8 {[%clk 0:00:08]} 26. Rad1 {[%clk 0:00:42.9]} 26...
Bc6 {[%clk 0:00:06.9]} 27. Qxd6+ {[%clk 0:00:41.5]} 27... Kg8 {[%clk 0:00:05.8]}
28. Qxg6+ {[%clk 0:00:40.9]} 28... Nxg6 {[%clk 0:00:05.3]} 29. Rd8+ {[%clk
0:00:36.8]} 29... Rxd8 {[%clk 0:00:04.8]} 30. Bxd8 {[%clk 0:00:37.7]} 1-0

[Event "Early-Titled-Tuesday-Blitz-May-14-2024"]
[Site "Chess.com"]
[Date "2024.05.14"]
[Round "9"]
[White "Denisenko_Denis"]
[Black "ChessBliss09"]
[Result "1-0"]
[WhiteElo "2418"]
[BlackElo "2239"]
[TimeControl "180+1"]
[EndTime "9:46:30 PDT"]
[Termination "Denisenko_Denis won by checkmate"]

1. e4 {[%clk 0:02:27.4]} 1... e5 {[%clk 0:02:59.6]} 2. Nf3 {[%clk 0:02:27]} 2...
Nc6 {[%clk 0:02:59]} 3. Bc4 {[%clk 0:02:26.6]} 3... Bc5 {[%clk 0:02:58.1]} 4. c3
{[%clk 0:02:25.6]} 4... Nf6 {[%clk 0:02:58.1]} 5. d3 {[%clk 0:02:25.4]} 5... O-O
{[%clk 0:02:57.5]} 6. O-O {[%clk 0:02:25.4]} 6... d6 {[%clk 0:02:57.8]} 7. Nbd2
{[%clk 0:02:25.2]} 7... a6 {[%clk 0:02:52.8]} 8. Bb3 {[%clk 0:02:24.6]} 8... b5
{[%clk 0:02:52.3]} 9. h3 {[%clk 0:02:23.2]} 9... Be6 {[%clk 0:02:50.8]} 10. Bc2
{[%clk 0:02:22.9]} 10... Ne7 {[%clk 0:02:48.5]} 11. d4 {[%clk 0:02:20.7]} 11...
exd4 {[%clk 0:02:49.4]} 12. cxd4 {[%clk 0:02:20.3]} 12... Bb6 {[%clk 0:02:50]}
13. Re1 {[%clk 0:02:16.2]} 13... Re8 {[%clk 0:02:49]} 14. Nf1 {[%clk 0:02:13.8]}
14... Ng6 {[%clk 0:02:48.1]} 15. Ng3 {[%clk 0:02:13.4]} 15... Bd7 {[%clk
0:02:44.5]} 16. Bg5 {[%clk 0:02:07.4]} 16... h6 {[%clk 0:02:42.5]} 17. Be3
{[%clk 0:02:07.2]} 17... Bc6 {[%clk 0:02:30.2]} 18. d5 {[%clk 0:02:06.4]} 18...
Bxe3 {[%clk 0:02:28.8]} 19. Rxe3 {[%clk 0:02:05.8]} 19... Bb7 {[%clk 0:02:25.8]}
20. Nd4 {[%clk 0:02:03.3]} 20... Ne5 {[%clk 0:02:06.4]} 21. Ngf5 {[%clk
0:01:51.8]} 21... Nc4 {[%clk 0:02:03.9]} 22. Rg3 {[%clk 0:01:51.2]} 22... g6
{[%clk 0:01:56]} 23. Nxh6+ {[%clk 0:01:48]} 23... Kh7 {[%clk 0:01:52.7]} 24.
Nxf7 {[%clk 0:01:45.1]} 24... Qe7 {[%clk 0:01:42.6]} 25. Ng5+ {[%clk 0:01:44.7]}
25... Kg8 {[%clk 0:01:40]} 26. Nge6 {[%clk 0:01:44.3]} 26... Kf7 {[%clk
0:01:37.6]} 27. b3 {[%clk 0:01:29.4]} 27... Ne5 {[%clk 0:01:33.2]} 28. f4 {[%clk
0:01:28.8]} 28... Nh5 {[%clk 0:01:29.5]} 29. fxe5 {[%clk 0:01:16]} 29... dxe5
{[%clk 0:01:12.6]} 30. Rf3+ {[%clk 0:01:12.8]} 30... Kg8 {[%clk 0:01:10.9]} 31.
Ne2 {[%clk 0:01:03.4]} 31... Bc8 {[%clk 0:01:04.4]} 32. Qd2 {[%clk 0:01:00.3]}
32... Bxe6 {[%clk 0:00:59.3]} 33. dxe6 {[%clk 0:01:00]} 33... Qxe6 {[%clk
0:01:00.2]} 34. Qh6 {[%clk 0:00:56.3]} 34... Rf8 {[%clk 0:00:54.3]} 35. Raf1
{[%clk 0:00:54.8]} 35... Rxf3 {[%clk 0:00:48.8]} 36. Rxf3 {[%clk 0:00:54.5]}
36... Ng7 {[%clk 0:00:46.9]} 37. b4 {[%clk 0:00:52.9]} 37... g5 {[%clk
0:00:36.5]} 38. Bb3 {[%clk 0:00:49.7]} 38... Qxb3 {[%clk 0:00:33.8]} 39. axb3
{[%clk 0:00:49.2]} 39... a5 {[%clk 0:00:31.8]} 40. Qg6 {[%clk 0:00:43.5]} 40...
axb4 {[%clk 0:00:29.5]} 41. Rf7 {[%clk 0:00:42.8]} 41... Ra1+ {[%clk 0:00:26.1]}
42. Kf2 {[%clk 0:00:42.4]} 42... Rf1+ {[%clk 0:00:25.9]} 43. Kxf1 {[%clk
0:00:42.1]} 43... c5 {[%clk 0:00:25.4]} 44. Qxg7# {[%clk 0:00:43]} 1-0

[Event "Early-Titled-Tuesday-Blitz-May-14-2024"]
[Site "Chess.com"]
[Date "2024.05.14"]
[Round "9"]
[White "rhwr"]
[Black "KirAk47"]
[Result "0-1"]
[WhiteElo "2327"]
[BlackElo "2447"]
[TimeControl "180+1"]
[EndTime "9:46:38 PDT"]
[Termination "KirAk47 won by resignation"]

1. e4 {[%clk 0:03:00.9]} 1... c6 {[%clk 0:02:57.2]} 2. d4 {[%clk 0:02:56.8]}
2... d5 {[%clk 0:02:57.5]} 3. Nc3 {[%clk 0:02:57.4]} 3... dxe4 {[%clk
0:02:55.5]} 4. Nxe4 {[%clk 0:02:58.3]} 4... Nf6 {[%clk 0:02:55.7]} 5. Nxf6+
{[%clk 0:02:57.8]} 5... exf6 {[%clk 0:02:55.9]} 6. Nf3 {[%clk 0:02:58.3]} 6...
Bd6 {[%clk 0:02:53.5]} 7. Bd3 {[%clk 0:02:58.7]} 7... O-O {[%clk 0:02:53.5]} 8.
O-O {[%clk 0:02:59.2]} 8... Qc7 {[%clk 0:02:45.6]} 9. h3 {[%clk 0:02:57.8]} 9...
Nd7 {[%clk 0:02:39.2]} 10. Nh4 {[%clk 0:02:36.4]} 10... g6 {[%clk 0:02:33.2]}
11. Re1 {[%clk 0:02:25.2]} 11... f5 {[%clk 0:02:09.1]} 12. Bh6 {[%clk
0:02:23.4]} 12... Rd8 {[%clk 0:02:07.2]} 13. c4 {[%clk 0:02:06.1]} 13... Bh2+
{[%clk 0:02:02.3]} 14. Kh1 {[%clk 0:02:05.4]} 14... Bf4 {[%clk 0:02:02.9]} 15.
Nxf5 {[%clk 0:01:13.9]} 15... gxf5 {[%clk 0:01:45.8]} 16. Qh5 {[%clk 0:01:12.4]}
16... Bxh6 {[%clk 0:01:30]} 17. Qxh6 {[%clk 0:01:09.3]} 17... Nf8 {[%clk
0:01:28.4]} 18. Re3 {[%clk 0:00:43]} 18... Ng6 {[%clk 0:01:11]} 19. Rae1 {[%clk
0:00:39.6]} 19... Be6 {[%clk 0:01:06.2]} 20. Rg3 {[%clk 0:00:21.9]} 20... Rxd4
{[%clk 0:01:00.6]} 21. Rxe6 {[%clk 0:00:08.3]} 21... fxe6 {[%clk 0:00:49.8]} 22.
Rxg6+ {[%clk 0:00:08.2]} 22... hxg6 {[%clk 0:00:50.1]} 23. Qxg6+ {[%clk
0:00:08.7]} 23... Qg7 {[%clk 0:00:50.8]} 24. Qxe6+ {[%clk 0:00:09.1]} 24... Kh8
{[%clk 0:00:51.4]} 25. Qxf5 {[%clk 0:00:07.3]} 25... Rxd3 {[%clk 0:00:47.8]} 26.
Qxd3 {[%clk 0:00:06.6]} 26... Re8 {[%clk 0:00:43.6]} 27. b3 {[%clk 0:00:03.8]}
27... Re1+ {[%clk 0:00:42.2]} 28. Kh2 {[%clk 0:00:04.2]} 28... Qe5+ {[%clk
0:00:40.8]} 29. g3 {[%clk 0:00:02.2]} 29... Qf6 {[%clk 0:00:23.6]} 30. f4 {[%clk
0:00:00.9]} 30... Qb2+ {[%clk 0:00:22.7]} 0-1

[Event "Early-Titled-Tuesday-Blitz-May-14-2024"]
[Site "Chess.com"]
[Date "2024.05.14"]
[Round "9"]
[White "The_Machine04"]
[Black "MdChess1734"]
[Result "1-0"]
[WhiteElo "2685"]
[BlackElo "2420"]
[TimeControl "180+1"]
[EndTime "9:46:40 PDT"]
[Termination "The_Machine04 won on time"]

1. d4 {[%clk 0:03:00.9]} 1... Nf6 {[%clk 0:02:59]} 2. Nf3 {[%clk 0:03:01.2]}
2... e6 {[%clk 0:02:59.2]} 3. Nbd2 {[%clk 0:03:01.5]} 3... c5 {[%clk 0:02:58.1]}
4. e3 {[%clk 0:03:01.9]} 4... b6 {[%clk 0:02:58.2]} 5. Bd3 {[%clk 0:03:01.7]}
5... Bb7 {[%clk 0:02:58.5]} 6. O-O {[%clk 0:03:01.8]} 6... Be7 {[%clk
0:02:58.7]} 7. b3 {[%clk 0:03:01.7]} 7... O-O {[%clk 0:02:58.4]} 8. Bb2 {[%clk
0:03:01.9]} 8... cxd4 {[%clk 0:02:54.8]} 9. exd4 {[%clk 0:03:01.8]} 9... Nc6
{[%clk 0:02:55.5]} 10. a3 {[%clk 0:03:02.3]} 10... Nd5 {[%clk 0:02:55.4]} 11.
Re1 {[%clk 0:03:01.7]} 11... f5 {[%clk 0:02:54.7]} 12. c4 {[%clk 0:02:59.3]}
12... Nf4 {[%clk 0:02:42]} 13. Bf1 {[%clk 0:02:59.3]} 13... Bf6 {[%clk
0:02:41.6]} 14. Rb1 {[%clk 0:02:38.6]} 14... Rc8 {[%clk 0:02:31.2]} 15. b4
{[%clk 0:02:21.4]} 15... Ne7 {[%clk 0:02:21.1]} 16. g3 {[%clk 0:02:20.4]} 16...
Nfg6 {[%clk 0:02:20]} 17. Bg2 {[%clk 0:02:20.2]} 17... Qc7 {[%clk 0:02:10.7]}
18. Qb3 {[%clk 0:02:15.7]} 18... b5 {[%clk 0:02:00.7]} 19. cxb5 {[%clk
0:02:13.1]} 19... Bd5 {[%clk 0:02:00.4]} 20. Qd3 {[%clk 0:02:11.3]} 20... Qb7
{[%clk 0:01:59.6]} 21. a4 {[%clk 0:02:08.8]} 21... Rc7 {[%clk 0:01:44.9]} 22.
Rbc1 {[%clk 0:02:08.2]} 22... Rfc8 {[%clk 0:01:44.3]} 23. Rxc7 {[%clk
0:02:08.2]} 23... Rxc7 {[%clk 0:01:44.2]} 24. Rc1 {[%clk 0:02:08.8]} 24... Rxc1+
{[%clk 0:01:43.5]} 25. Bxc1 {[%clk 0:02:09.7]} 25... a6 {[%clk 0:01:41.5]} 26.
bxa6 {[%clk 0:02:06.1]} 26... Qxb4 {[%clk 0:01:40]} 27. Qb5 {[%clk 0:01:42.3]}
27... Qc3 {[%clk 0:00:52]} 28. Bb2 {[%clk 0:01:33.5]} 28... Qc7 {[%clk
0:00:47.3]} 29. Ba3 {[%clk 0:01:26.7]} 29... Nc6 {[%clk 0:00:41.9]} 30. Bc5
{[%clk 0:01:24.4]} 30... d6 {[%clk 0:00:35.2]} 31. Bb6 {[%clk 0:01:15.2]} 31...
Qb8 {[%clk 0:00:34.9]} 32. h4 {[%clk 0:01:02.5]} 32... Nge7 {[%clk 0:00:33.1]}
33. Ng5 {[%clk 0:00:59]} 33... Bxg2 {[%clk 0:00:10.2]} 34. Kxg2 {[%clk
0:00:59.9]} 34... Qa8 {[%clk 0:00:09.7]} 35. Ndf3 {[%clk 0:00:58]} 35... Nxd4
{[%clk 0:00:09.1]} 36. Bxd4 {[%clk 0:00:56.9]} 36... Bxd4 {[%clk 0:00:09]} 37.
Qb7 {[%clk 0:00:52.8]} 37... Qa7 {[%clk 0:00:08.2]} 38. Nxd4 {[%clk 0:00:50.4]}
1-0

[Event "Early-Titled-Tuesday-Blitz-May-14-2024"]
[Site "Chess.com"]
[Date "2024.05.14"]
[Round "9"]
[White "azikom"]
[Black "ernestina08chess"]
[Result "1-0"]
[WhiteElo "2706"]
[BlackElo "2323"]
[TimeControl "180+1"]
[EndTime "9:46:43 PDT"]
[Termination "azikom won by checkmate"]

1. c4 {[%clk 0:03:00.7]} 1... e6 {[%clk 0:02:55.9]} 2. g3 {[%clk 0:02:57.8]}
2... Nf6 {[%clk 0:02:54.9]} 3. Bg2 {[%clk 0:02:58.7]} 3... d5 {[%clk 0:02:54.9]}
4. Nf3 {[%clk 0:02:57.5]} 4... Be7 {[%clk 0:02:55.5]} 5. O-O {[%clk 0:02:58]}
5... O-O {[%clk 0:02:55.5]} 6. b3 {[%clk 0:02:57]} 6... c5 {[%clk 0:02:54.6]} 7.
Bb2 {[%clk 0:02:57.2]} 7... Nc6 {[%clk 0:02:52.8]} 8. e3 {[%clk 0:02:52.7]} 8...
d4 {[%clk 0:02:50.6]} 9. exd4 {[%clk 0:02:52.4]} 9... cxd4 {[%clk 0:02:51.5]}
10. Re1 {[%clk 0:02:53]} 10... a5 {[%clk 0:02:44.1]} 11. Na3 {[%clk 0:02:52.1]}
11... Bc5 {[%clk 0:02:41.6]} 12. d3 {[%clk 0:02:49.9]} 12... Nd7 {[%clk
0:02:40.4]} 13. Nb5 {[%clk 0:02:49.3]} 13... e5 {[%clk 0:02:39.5]} 14. a3 {[%clk
0:02:49]} 14... f6 {[%clk 0:02:37.1]} 15. Nd2 {[%clk 0:02:44.7]} 15... Re8
{[%clk 0:02:26]} 16. h4 {[%clk 0:02:44.8]} 16... Nb6 {[%clk 0:02:23.4]} 17. Ne4
{[%clk 0:02:44.6]} 17... Bf8 {[%clk 0:02:23.3]} 18. Qh5 {[%clk 0:02:36.7]} 18...
Be6 {[%clk 0:02:20.2]} 19. Bc1 {[%clk 0:02:26.3]} 19... Bf7 {[%clk 0:02:19.1]}
20. Qf3 {[%clk 0:02:22.9]} 20... Qd7 {[%clk 0:02:04.3]} 21. Bd2 {[%clk
0:02:19.4]} 21... Nc8 {[%clk 0:01:50.5]} 22. Qxf6 {[%clk 0:02:13.2]} 22... Bg6
{[%clk 0:01:11]} 23. Qf3 {[%clk 0:02:09.9]} 23... Be7 {[%clk 0:01:08.8]} 24. h5
{[%clk 0:02:03.7]} 24... Rf8 {[%clk 0:01:02.7]} 25. Qe2 {[%clk 0:02:02.5]} 25...
Bf5 {[%clk 0:00:58.2]} 26. h6 {[%clk 0:02:02]} 26... g6 {[%clk 0:00:51.7]} 27.
Qd1 {[%clk 0:01:57.6]} 27... Bg4 {[%clk 0:00:49.8]} 28. Qc1 {[%clk 0:01:55.8]}
28... Bd8 {[%clk 0:00:40.4]} 29. b4 {[%clk 0:01:48.5]} 29... N6e7 {[%clk
0:00:36.2]} 30. Bg5 {[%clk 0:01:42.3]} 30... Nf5 {[%clk 0:00:31.6]} 31. Bxd8
{[%clk 0:01:39.7]} 31... Qxd8 {[%clk 0:00:31.6]} 32. bxa5 {[%clk 0:01:33.7]}
32... Nfe7 {[%clk 0:00:20.6]} 33. Rb1 {[%clk 0:01:32.9]} 33... Rf5 {[%clk
0:00:18.4]} 34. Nc5 {[%clk 0:01:28.4]} 34... Rh5 {[%clk 0:00:12.6]} 35. Nxb7
{[%clk 0:01:26.7]} 35... Qf8 {[%clk 0:00:12.8]} 36. N7d6 {[%clk 0:01:15.6]}
36... Nxd6 {[%clk 0:00:12.8]} 37. Nxd6 {[%clk 0:01:16.2]} 37... Ra6 {[%clk
0:00:08.4]} 38. Ne4 {[%clk 0:01:15.2]} 38... Rxh6 {[%clk 0:00:07.7]} 39. Rb8
{[%clk 0:01:13.2]} 39... Qxb8 {[%clk 0:00:06.7]} 40. Qxh6 {[%clk 0:01:14.1]}
40... Nf5 {[%clk 0:00:06.8]} 41. Qg5 {[%clk 0:01:11.5]} 41... Bh5 {[%clk
0:00:06.1]} 42. Nf6+ {[%clk 0:01:09.7]} 42... Rxf6 {[%clk 0:00:05.3]} 43. Qxf6
{[%clk 0:01:09.6]} 43... Qa7 {[%clk 0:00:05.8]} 44. Qxe5 {[%clk 0:01:09]} 44...
Bg4 {[%clk 0:00:02.9]} 45. Bd5+ {[%clk 0:01:08.1]} 45... Kf8 {[%clk 0:00:02.1]}
46. Qh8# {[%clk 0:01:08.5]} 1-0

[Event "Early-Titled-Tuesday-Blitz-May-14-2024"]
[Site "Chess.com"]
[Date "2024.05.14"]
[Round "9"]
[White "Casablanca"]
[Black "Artemiki"]
[Result "0-1"]
[WhiteElo "2703"]
[BlackElo "2623"]
[TimeControl "180+1"]
[EndTime "9:46:45 PDT"]
[Termination "Artemiki won by checkmate"]

1. d4 {[%clk 0:03:00.9]} 1... Nf6 {[%clk 0:02:58.5]} 2. Bg5 {[%clk 0:03:00.7]}
2... d5 {[%clk 0:02:47.9]} 3. Bxf6 {[%clk 0:02:59.7]} 3... gxf6 {[%clk
0:02:44.9]} 4. e3 {[%clk 0:02:52.5]} 4... e6 {[%clk 0:02:37]} 5. c4 {[%clk
0:02:50.1]} 5... c6 {[%clk 0:02:31.7]} 6. Nc3 {[%clk 0:02:50.6]} 6... f5 {[%clk
0:02:28.2]} 7. Nf3 {[%clk 0:02:48.6]} 7... Nd7 {[%clk 0:02:28.2]} 8. cxd5 {[%clk
0:02:46]} 8... cxd5 {[%clk 0:02:27.3]} 9. Qa4 {[%clk 0:02:43.8]} 9... a6 {[%clk
0:02:18.6]} 10. h3 {[%clk 0:02:44.3]} 10... Rb8 {[%clk 0:02:17.8]} 11. g4 {[%clk
0:02:43.8]} 11... b5 {[%clk 0:02:15.6]} 12. Qb3 {[%clk 0:02:42.4]} 12... fxg4
{[%clk 0:01:57.8]} 13. hxg4 {[%clk 0:02:43.3]} 13... b4 {[%clk 0:01:57.3]} 14.
Na4 {[%clk 0:02:24.3]} 14... Nf6 {[%clk 0:01:55]} 15. Ne5 {[%clk 0:02:14.5]}
15... Bd7 {[%clk 0:01:42.2]} 16. Rc1 {[%clk 0:02:07.6]} 16... Bd6 {[%clk
0:01:29.3]} 17. Nc6 {[%clk 0:01:59.6]} 17... Bxc6 {[%clk 0:01:28.4]} 18. Rxc6
{[%clk 0:02:00.5]} 18... Nxg4 {[%clk 0:01:23.6]} 19. Bxa6 {[%clk 0:01:50.7]}
19... h5 {[%clk 0:00:41.2]} 20. Be2 {[%clk 0:01:39.9]} 20... Nf6 {[%clk
0:00:35.4]} 21. Qc2 {[%clk 0:01:38]} 21... h4 {[%clk 0:00:32.2]} 22. Rh3 {[%clk
0:01:23.6]} 22... Ne4 {[%clk 0:00:20.8]} 23. Nb6 {[%clk 0:01:17.1]} 23... Ng5
{[%clk 0:00:07.8]} 24. Rh1 {[%clk 0:01:16.9]} 24... h3 {[%clk 0:00:08]} 25. Nc8
{[%clk 0:01:17.4]} 25... Be7 {[%clk 0:00:04.1]} 26. Nxe7 {[%clk 0:01:17.9]}
26... Kxe7 {[%clk 0:00:03.9]} 27. Rc7+ {[%clk 0:01:18.8]} 27... Kf6 {[%clk
0:00:03.7]} 28. Qc6 {[%clk 0:01:15.8]} 28... Rc8 {[%clk 0:00:03.8]} 29. Rxc8
{[%clk 0:01:14.7]} 29... Qxc8 {[%clk 0:00:04.7]} 30. Qd6 {[%clk 0:01:14.7]}
30... Qc1+ {[%clk 0:00:04]} 31. Bd1 {[%clk 0:01:15.5]} 31... Ne4 {[%clk
0:00:03.4]} 32. Qe5+ {[%clk 0:01:15.6]} 32... Ke7 {[%clk 0:00:03.2]} 33. Ke2
{[%clk 0:00:21.2]} 33... Qd2+ {[%clk 0:00:03.7]} 34. Kf3 {[%clk 0:00:22.1]}
34... Qxf2+ {[%clk 0:00:04.2]} 35. Kg4 {[%clk 0:00:23]} 35... f5+ {[%clk
0:00:03.5]} 36. Qxf5 {[%clk 0:00:23.7]} 36... Qxf5# {[%clk 0:00:03.4]} 0-1

[Event "Early-Titled-Tuesday-Blitz-May-14-2024"]
[Site "Chess.com"]
[Date "2024.05.14"]
[Round "9"]
[White "NMChessToImpress"]
[Black "patzer-reloaded"]
[Result "0-1"]
[WhiteElo "2269"]
[BlackElo "2404"]
[TimeControl "180+1"]
[EndTime "9:46:46 PDT"]
[Termination "patzer-reloaded won on time"]

1. e4 {[%clk 0:03:00.9]} 1... d6 {[%clk 0:02:57.1]} 2. d4 {[%clk 0:03:00.6]}
2... Nf6 {[%clk 0:02:57.7]} 3. Nc3 {[%clk 0:02:57.3]} 3... g6 {[%clk 0:02:57.9]}
4. Be3 {[%clk 0:02:54.9]} 4... c6 {[%clk 0:02:56.1]} 5. Qd2 {[%clk 0:02:48.7]}
5... Qc7 {[%clk 0:02:53.8]} 6. Nf3 {[%clk 0:02:43.5]} 6... Bg4 {[%clk
0:02:46.9]} 7. Be2 {[%clk 0:02:36.8]} 7... Nbd7 {[%clk 0:02:44.1]} 8. O-O {[%clk
0:02:30.3]} 8... Bg7 {[%clk 0:02:39.9]} 9. Bh6 {[%clk 0:02:26.1]} 9... O-O
{[%clk 0:02:39.4]} 10. Bxg7 {[%clk 0:02:22.4]} 10... Kxg7 {[%clk 0:02:40.3]} 11.
Rfe1 {[%clk 0:02:11.8]} 11... e5 {[%clk 0:02:39.1]} 12. dxe5 {[%clk 0:02:00.4]}
12... dxe5 {[%clk 0:02:38.1]} 13. Rad1 {[%clk 0:01:59.9]} 13... Rfd8 {[%clk
0:02:34.1]} 14. Qd6 {[%clk 0:01:51.9]} 14... Qxd6 {[%clk 0:02:27.2]} 15. Rxd6
{[%clk 0:01:52.8]} 15... Bxf3 {[%clk 0:02:27.2]} 16. Bxf3 {[%clk 0:01:38.1]}
16... Nc5 {[%clk 0:02:26.2]} 17. Red1 {[%clk 0:01:38.3]} 17... Rxd6 {[%clk
0:02:25.5]} 18. Rxd6 {[%clk 0:01:38.9]} 18... a5 {[%clk 0:02:22]} 19. Kf1 {[%clk
0:01:33.2]} 19... Ne8 {[%clk 0:01:44.4]} 20. Rd2 {[%clk 0:01:25.9]} 20... Nc7
{[%clk 0:01:44]} 21. Nd1 {[%clk 0:01:09.1]} 21... a4 {[%clk 0:01:29.4]} 22. Ne3
{[%clk 0:00:59]} 22... a3 {[%clk 0:01:13.7]} 23. b3 {[%clk 0:00:58.9]} 23...
N7a6 {[%clk 0:01:00.7]} 24. c3 {[%clk 0:00:41.7]} 24... Nc7 {[%clk 0:00:35.1]}
25. b4 {[%clk 0:00:26.4]} 25... Na4 {[%clk 0:00:34.5]} 26. Rd7 {[%clk
0:00:21.4]} 26... Ne6 {[%clk 0:00:33]} 27. Nc4 {[%clk 0:00:12.7]} 27... Kf6
{[%clk 0:00:27.1]} 28. Rxb7 {[%clk 0:00:09]} 28... Nxc3 {[%clk 0:00:25.6]} 29.
Bg4 {[%clk 0:00:04.8]} 29... Nxa2 {[%clk 0:00:23.3]} 30. Nd6 {[%clk 0:00:04.8]}
30... Nd8 {[%clk 0:00:20]} 31. Rb6 {[%clk 0:00:00.6]} 31... Nxb4 {[%clk
0:00:18.3]} 32. Ne8+ {[%clk 0:00:00.7]} 32... Kg5 {[%clk 0:00:17.6]} 0-1